bitfinex/quotes_ETHUSD_20251021
["timestamp","ask_amount","ask_price","bid_price","bid_amount"]
[1761047052865,19.72252666,3897.4,3897.3,0.002]
[1761047053881,20.24448266,3897.4,3897.3,0.002]
[1761047055001,18.17544066,3897.4,3897.3,0.002]
[1761047055503,15.95163466,3897.4,3897.3,0.002]
[1761047056300,18.71196466,3897.4,3897.3,0.002]
[1761047057106,11.15175366,3897.4,3897.3,0.002]
[1761047057401,18.98812566,3897.4,3897.3,0.002]
[1761047057609,19.39067204,3897.4,3897.3,0.002]
[1761047057808,18.98812566,3897.4,3897.3,0.002]
[1761047058577,18.27922366,3897.4,3897.3,0.002]
[1761047058978,17.52867266,3897.4,3897.3,0.002]
[1761047059297,17.26191266,3897.4,3897.3,0.002]
[1761047060418,24.65714866,3897.4,3897.3,0.002]
[1761047060902,24.33134866,3897.4,3897.3,0.002]
[1761047061317,13.95213466,3897.4,3897.3,0.002]
[1761047061914,13.72038066,3897.4,3897.3,0.002]
[1761047062215,15.96685166,3897.4,3897.3,0.002]
[1761047063211,18.24967166,3897.4,3897.3,0.002]
[1761047063501,17.32312066,3897.4,3897.3,0.002]
[1761047063872,17.47261083,3897.4,3897.3,0.002]
[1761047064296,26.21174583,3897.4,3897.3,0.002]
[1761047065196,11.56868983,3897.4,3897.3,0.002]
[1761047065416,26.18856983,3897.4,3897.3,0.002]
[1761047066438,26.44107383,3897.4,3897.3,0.002]
[1761047066636,26.81515168,3897.4,3897.3,0.002]
[1761047067419,33.12787168,3897.4,3897.3,0.002]
[1761047067824,31.83278266,3897.4,3897.3,0.002]
[1761047068000,30.61778366,3897.4,3897.3,0.002]
[1761047068539,35.28121666,3897.4,3897.3,0.002]
[1761047068705,32.91712866,3897.4,3897.3,0.002]
[1761047069098,33.31965356,3897.4,3897.3,0.002]
[1761047069627,36.16688056,3897.4,3897.3,0.002]
[1761047070326,35.96384456,3897.4,3897.3,0.002]
[1761047071218,36.36641753,3897.4,3897.3,0.002]
[1761047071512,11.55427856,3897.4,3897.3,0.002]
[1761047071829,2.56601062,3897.1,3897.0,0.002]
[1761047072131,37.58075562,3897.1,3897.0,0.002]
[1761047072339,35.51982662,3897.1,3897.0,0.002]
[1761047072630,36.10738862,3897.1,3897.0,0.002]
[1761047073644,40.47734962,3897.1,3897.0,0.002]
[1761047073847,37.77234962,3897.1,3897.0,0.002]
[1761047074145,36.95434262,3897.1,3897.0,0.002]
[1761047074540,37.35693798,3897.1,3897.0,0.002]
[1761047074699,39.73442998,3897.1,3897.0,0.002]
[1761047075030,36.09695398,3897.1,3897.0,0.002]
[1761047075835,40.07954298,3897.1,3897.0,0.002]
[1761047076600,16.90153598,3897.1,3897.0,0.002]
[1761047076938,42.19093498,3897.1,3897.0,0.002]
[1761047077304,41.05408098,3897.1,3897.0,0.002]
[1761047077724,42.26908098,3897.1,3897.0,0.002]
[1761047078033,41.05408098,3897.1,3897.0,0.002]
[1761047078741,44.98982866,3897.1,3897.0,0.002]
[1761047078900,42.99768566,3897.1,3897.0,0.002]
[1761047079711,24.07184166,3897.1,3897.0,0.002]
[1761047079912,42.46342266,3897.1,3897.0,0.002]
[1761047080208,39.86328115,3897.1,3897.0,0.002]
[1761047080637,28.94324798,3897.1,3897.0,0.002]
[1761047080817,27.92674898,3897.1,3897.0,0.002]
[1761047081022,27.52674898,3897.1,3897.0,0.002]
[1761047081860,29.99465562,3897.1,3897.0,0.002]
[1761047082968,30.67755562,3897.1,3897.0,0.002]
[1761047083159,30.05109762,3897.1,3897.0,0.002]
[1761047083463,30.15402209,3897.1,3897.0,0.002]
[1761047083950,41.0247386,3897.1,3897.0,0.002]
[1761047084117,41.41494977,3897.1,3897.0,0.002]
[1761047084941,46.98061177,3897.1,3897.0,0.002]
[1761047086025,41.31764177,3897.1,3897.0,0.002]
[1761047086228,37.31097577,3897.1,3897.0,0.002]
[1761047086636,37.81785577,3897.1,3897.0,0.002]
[1761047087040,47.16202577,3897.1,3897.0,0.002]
[1761047087556,41.57755577,3897.1,3897.0,0.002]
[1761047087759,40.96307577,3897.1,3897.0,0.002]
[1761047088060,36.26372577,3897.1,3897.0,0.002]
[1761047088431,36.02609677,3897.1,3897.0,0.002]
[1761047088862,35.91849677,3897.1,3897.0,0.002]
[1761047089156,35.94574777,3897.1,3897.0,0.002]
[1761047089454,36.05334777,3897.1,3897.0,0.002]
[1761047089959,44.26897677,3897.1,3897.0,0.002]
[1761047090261,37.47561977,3897.1,3897.0,0.002]
[1761047090478,36.82973977,3897.1,3897.0,0.002]
[1761047091046,39.95689177,3897.1,3897.0,0.002]
[1761047091962,39.41374577,3897.1,3897.0,0.002]
[1761047092162,40.64057377,3897.1,3897.0,0.002]
[1761047092361,37.07600377,3897.1,3897.0,0.002]
[1761047093133,43.82701077,3897.1,3897.0,0.002]
[1761047093653,42.61397677,3897.1,3897.0,0.002]
[1761047094961,42.26326877,3897.1,3897.0,0.002]
[1761047095164,44.52781977,3897.1,3897.0,0.002]
[1761047095358,4.42207646,3897.0,3896.9,0.002]
[1761047095670,18.38839996,3897.0,3896.9,0.002]
[1761047095977,18.13579185,3897.0,3896.9,0.002]
[1761047096141,18.23871923,3897.0,3896.9,0.002]
[1761047096343,20.06845423,3897.0,3896.9,0.002]
[1761047096545,18.87053323,3897.0,3896.9,0.002]
[1761047097282,20.83853323,3897.0,3896.9,0.002]
[1761047099382,8.07312923,3897.0,3896.9,0.002]
[1761047099564,22.50591023,3897.0,3896.9,0.002]
[1761047100190,19.50495923,3897.0,3896.9,0.002]
[1761047100513,15.09214223,3897.0,3896.9,0.002]
[1761047100792,13.12403323,3897.0,3896.9,0.4696]
[1761047101494,11.10379323,3897.0,3896.9,0.4696]
[1761047101646,10.72238423,3897.0,3896.9,0.4696]
[1761047102132,5.07852116,3897.0,3896.9,0.4696]
[1761047102302,10.54835628,3897.0,3896.9,0.4696]
[1761047102491,13.55111128,3897.0,3896.9,0.4696]
[1761047102692,10.54835628,3897.0,3896.9,0.4696]
[1761047106142,10.54835628,3897.0,3896.9,0.002]
[1761047106429,25.26242197,3897.0,3896.9,0.002]
[1761047106604,23.80611597,3897.0,3896.9,0.002]
[1761047107003,21.64641897,3897.0,3896.9,0.4696]
[1761047107207,18.41982197,3897.0,3896.9,0.4696]
[1761047108211,19.19262597,3897.0,3896.9,0.4696]
[1761047108435,18.80902397,3897.0,3896.9,0.4696]
[1761047109131,15.37915697,3897.0,3896.9,0.4696]
[1761047109355,10.54835628,3897.0,3896.9,0.4696]
[1761047110109,13.50951928,3897.0,3896.9,0.4696]
[1761047110309,10.54835628,3897.0,3896.9,0.4696]
[1761047110551,12.88562128,3897.0,3896.9,0.4696]
[1761047111154,10.54835628,3897.0,3896.9,0.4696]
[1761047111314,13.39551928,3897.0,3896.9,0.4696]
[1761047111638,23.30607128,3897.0,3896.9,0.002]
[1761047111852,22.58385928,3897.0,3896.9,0.002]
[1761047112142,21.70530328,3897.0,3896.9,0.002]
[1761047112508,21.34997228,3897.0,3896.9,0.002]
[1761047112708,18.96753299,3897.0,3896.9,0.4696]
[1761047112908,16.05662199,3897.0,3896.9,0.4696]
[1761047113724,19.00737999,3897.0,3896.9,0.002]
[1761047114029,19.39759116,3897.0,3896.9,0.002]
[1761047114231,19.85528567,3897.0,3896.9,0.002]
[1761047114438,19.74768567,3897.0,3896.9,0.002]
[1761047114751,21.35358916,3897.0,3896.9,0.002]
[1761047115051,19.66220199,3897.0,3896.9,0.4696]
[1761047115353,20.21069699,3897.0,3896.9,0.4696]
[1761047115864,20.82914099,3897.0,3896.9,0.4696]
[1761047116216,20.26114099,3897.0,3896.9,0.4696]
[1761047116416,20.26114099,3897.0,3896.9,0.002]
[1761047116825,30.99355999,3897.0,3896.9,0.002]
[1761047117454,29.15883799,3897.0,3896.9,0.002]
[1761047117862,30.54444999,3897.0,3896.9,0.002]
[1761047118665,30.65204999,3897.0,3896.9,0.002]
[1761047118829,32.21722699,3897.0,3896.9,0.002]
[1761047119735,30.77318299,3897.0,3896.9,0.002]
[1761047119958,31.20688799,3897.0,3896.9,0.002]
[1761047120628,29.55722899,3897.0,3896.9,0.002]
[1761047120832,31.64966999,3897.0,3896.9,0.002]
[1761047121151,30.88220499,3897.0,3896.9,0.002]
[1761047121342,27.19016599,3897.0,3896.9,0.002]
[1761047121933,29.09279499,3897.0,3896.9,0.002]
[1761047122145,28.49979499,3897.0,3896.9,0.002]
[1761047122643,28.13979499,3897.0,3896.9,0.002]
[1761047123045,28.14146799,3897.0,3896.9,0.002]
[1761047124532,21.31870799,3897.0,3896.9,0.002]
[1761047124733,20.40295799,3897.0,3896.9,0.002]
[1761047124935,20.40295799,3897.0,3896.9,0.4547]
[1761047125174,20.17734999,3897.0,3896.9,0.4547]
[1761047125533,20.17734999,3897.0,3896.9,0.002]
[1761047126158,27.42041695,3897.0,3896.9,0.002]
[1761047127234,34.05264095,3897.0,3896.9,0.002]
[1761047127571,33.06626395,3897.0,3896.9,0.002]
[1761047127865,32.95866395,3897.0,3896.9,0.002]
[1761047128266,33.97983595,3897.0,3896.9,0.002]
[1761047128430,33.50626695,3897.0,3896.9,0.002]
[1761047128638,33.29156795,3897.0,3896.9,0.002]
[1761047129262,33.65523795,3897.0,3896.9,0.002]
[1761047129561,27.43089095,3897.0,3896.9,0.002]
[1761047130367,31.74091595,3897.0,3896.9,0.002]
[1761047130661,28.99223295,3897.0,3896.9,0.002]
[1761047131236,28.18126395,3897.0,3896.9,0.002]
[1761047131849,27.82126395,3897.0,3896.9,0.002]
[1761047132254,26.72234495,3897.0,3896.9,0.002]
[1761047133045,23.76793195,3897.0,3896.9,0.002]
[1761047133249,24.37852495,3897.0,3896.9,0.002]
[1761047133448,24.13394495,3897.0,3896.9,0.002]
[1761047133660,23.69524295,3897.0,3896.9,0.4616]
[1761047133948,22.29980195,3897.0,3896.9,0.4616]
[1761047134350,24.47197995,3897.0,3896.9,0.4616]
[1761047135480,25.73217495,3897.0,3896.9,0.4616]
[1761047135861,24.72762395,3897.0,3896.9,0.4616]
[1761047136496,25.34108395,3897.0,3896.9,0.002]
[1761047136790,25.08762395,3897.0,3896.9,0.002]
[1761047136972,20.05686395,3897.0,3896.9,0.4616]
[1761047137173,8.50018774,3897.0,3896.9,0.4616]
[1761047137385,0.55451732,3897.0,3896.9,0.4616]
[1761047137755,0.001,3897.0,3896.9,0.4616]
[1761047138786,0.001,3897.0,3896.9,1.01611732]
[1761047139108,0.001,3897.0,3896.9,0.4616]
[1761047145913,2.56707646,3897.0,3896.9,0.4616]
[1761047146402,0.001,3897.0,3896.9,0.4616]
[1761047147394,2.56707646,3897.0,3896.9,0.4616]
[1761047148433,2.56707646,3897.0,3896.9,0.002]
[1761047148739,10.22165244,3897.0,3896.9,0.002]
[1761047149044,10.32490664,3897.0,3896.9,0.4616]
[1761047150030,3.248,3897.0,3896.9,0.4616]
[1761047151741,0.001,3897.0,3896.9,0.4616]
[1761047156269,0.001,3897.0,3896.9,0.002]
[1761047156415,2.56707646,3897.0,3896.9,0.002]
[1761047156739,2.56707646,3897.0,3896.9,0.4616]
[1761047157044,4.0894558,3897.0,3896.9,0.4616]
[1761047157656,2.56707646,3897.0,3896.9,0.4616]
[1761047159432,2.56707646,3897.0,3896.9,0.002]
[1761047160029,5.81407646,3897.0,3896.9,0.002]
[1761047160212,5.91917646,3897.0,3896.9,0.002]
[1761047160847,24.76154728,3897.0,3896.9,0.002]
[1761047161013,27.45869746,3897.0,3896.9,0.002]
[1761047161820,27.52082446,3897.0,3896.9,0.002]
[1761047162851,32.44431946,3897.0,3896.9,0.002]
[1761047163820,10.79275146,3897.0,3896.9,0.002]
[1761047164118,31.26596046,3897.0,3896.9,0.002]
[1761047164449,29.84983746,3897.0,3896.9,0.002]
[1761047165054,31.35351544,3897.0,3896.9,0.002]
[1761047165357,30.95092646,3897.0,3896.9,0.002]
[1761047166154,31.22792746,3897.0,3896.9,0.002]
[1761047166946,22.52507146,3897.0,3896.9,0.002]
[1761047167152,20.50928846,3897.0,3896.9,0.002]
[1761047167550,18.52566746,3897.0,3896.9,0.002]
[1761047167747,17.10643946,3897.0,3896.9,0.002]
[1761047167954,20.32805046,3897.0,3896.9,0.002]
[1761047168153,17.31954446,3897.0,3896.9,0.002]
[1761047168349,17.72213703,3897.0,3896.9,0.002]
[1761047168521,13.72413803,3897.0,3896.9,0.002]
[1761047168923,11.19534403,3897.0,3896.9,0.002]
[1761047169125,13.82923803,3897.0,3896.9,0.002]
[1761047169548,13.52927903,3897.0,3896.9,0.002]
[1761047169738,13.30232503,3897.0,3896.9,0.002]
[1761047169943,11.09024403,3897.0,3896.9,0.002]
[1761047170150,11.09024403,3897.0,3896.9,0.4341]
[1761047170151,5.25119385,3897.0,3896.9,0.4341]
[1761047170453,0.001,3897.0,3896.9,0.4341]
[1761047171028,0.001,3897.0,3896.9,3.00024231]
[1761047172035,0.001,3897.0,3896.9,0.4341]
[1761047173435,0.001,3897.0,3896.9,3.00024231]
[1761047173748,0.001,3897.0,3896.9,0.4341]
[1761047174554,0.001,3897.0,3896.9,3.00024231]
[1761047175025,0.001,3897.0,3896.9,0.4341]
[1761047176566,0.001,3897.0,3896.9,3.00024231]
[1761047177054,0.001,3897.0,3896.9,0.4341]
[1761047178545,0.001,3897.0,3896.9,3.00024231]
[1761047179059,0.001,3897.0,3896.9,3.02590373]
[1761047181067,0.001,3897.0,3896.9,3.00024231]
[1761047182348,0.001,3897.0,3896.9,0.4341]
[1761047182744,0.001,3897.0,3896.9,3.00024231]
[1761047185165,0.001,3897.0,3896.9,3.02590373]
[1761047188781,0.001,3897.0,3896.9,3.53278373]
[1761047189075,0.001,3897.0,3896.9,5.36312231]
[1761047189772,0.001,3897.0,3896.9,5.49212231]
[1761047198671,0.001,3897.0,3896.9,5.74932231]
[1761047204816,0.00092936,3898.0,3897.9,2.56548397]
[1761047204975,0.00092936,3898.0,3897.9,5.80948397]
[1761047205977,0.00092936,3898.0,3897.9,6.27448397]
[1761047207202,0.00092936,3898.0,3897.9,5.80948397]
[1761047208915,0.09992936,3898.0,3897.9,5.80948397]
[1761047209291,0.00092936,3898.0,3897.9,5.80948397]
[1761047213909,0.09992936,3898.0,3897.9,5.80948397]
[1761047214110,0.09992936,3898.0,3897.9,3.244]
[1761047214503,0.09992936,3898.0,3897.9,5.80948397]
[1761047214848,0.00092936,3898.0,3897.9,5.80948397]
[1761047216958,0.09992936,3898.0,3897.9,5.80948397]
[1761047217520,0.09992936,3898.0,3897.9,5.81148397]
[1761047218263,0.00092936,3898.0,3897.9,5.81148397]
[1761047219333,0.00092936,3898.0,3897.9,6.27648397]
[1761047219527,0.00092936,3898.0,3897.9,5.81148397]
[1761047219734,0.00092936,3898.0,3897.9,6.27648397]
[1761047220585,0.00092936,3898.0,3897.9,6.78336397]
[1761047220948,0.00092936,3898.0,3897.9,6.31836397]
[1761047221272,0.00092936,3898.0,3897.9,6.75036397]
[1761047224886,0.00092936,3898.0,3897.9,6.31836397]
[1761047225383,0.00092936,3898.0,3897.9,6.75036397]
[1761047227491,0.00092936,3898.0,3897.9,6.31836397]
[1761047228702,0.00092936,3898.0,3897.9,6.75036397]
[1761047229518,0.00092936,3898.0,3897.9,7.00756397]
[1761047229792,0.00092936,3898.0,3897.9,6.75036397]
[1761047231090,0.00092936,3898.0,3897.9,6.31836397]
[1761047231276,0.00092936,3898.0,3897.9,6.31736397]
[1761047231806,0.00092936,3898.0,3897.9,5.81048397]
[1761047231807,0.09992936,3898.0,3897.9,5.81048397]
[1761047232109,0.00092936,3898.0,3897.9,5.81048397]
[1761047234171,0.09992936,3898.0,3897.9,5.81048397]
[1761047235702,0.00092936,3898.0,3897.9,5.81048397]
[1761047238809,0.00092936,3898.0,3897.9,6.78736397]
[1761047241794,0.00092936,3898.0,3897.9,6.91536397]
[1761047242005,0.00092936,3898.0,3897.9,8.64336397]
[1761047243181,0.001,3898.8,3897.9,8.77256397]
[1761047243410,0.001,3898.8,3898.7,11.89191394]
[1761047243684,0.001,3898.8,3898.7,15.60491394]
[1761047244480,0.001,3898.8,3898.7,15.75441394]
[1761047245776,0.001,3898.8,3898.7,15.60391394]
[1761047253417,0.001,3898.8,3898.7,15.73191394]
[1761047257102,0.001,3898.8,3898.7,4.29295754]
[1761047257308,0.001,3898.8,3898.7,7.53395754]
[1761047257503,0.001,3898.8,3898.7,8.04083754]
[1761047257713,0.001,3898.8,3898.7,14.87571394]
[1761047257913,0.001,3898.8,3898.7,15.31421394]
[1761047258811,0.001,3898.8,3898.7,14.87571394]
[1761047261155,0.001,3898.8,3898.7,15.31421394]
[1761047264037,0.001,3898.8,3898.7,15.41701276]
[1761047266619,0.001,3898.8,3898.7,15.31421394]
[1761047267233,0.001,3898.8,3898.7,15.44221394]
[1761047269744,0.001,3898.8,3898.7,4.79983754]
[1761047269944,0.001,3898.8,3898.7,14.87571394]
[1761047270151,0.001,3898.8,3898.7,11.63471394]
[1761047270650,0.001,3898.8,3898.7,14.87571394]
[1761047273455,0.1012,3898.8,3898.7,14.87571394]
[1761047274085,0.0636,3899.0,3898.9,3.07170597]
[1761047274292,0.0636,3899.0,3898.9,8.04070597]
[1761047274650,0.001,3899.2,3899.1,3.07157441]
[1761047275086,0.001,3899.2,3899.1,4.79957441]
[1761047276189,0.001,3899.2,3899.1,8.04057441]
[1761047276803,0.001,3899.2,3899.1,14.87545081]
[1761047279987,0.001,3899.2,3899.1,15.00345081]
[1761047283273,0.001,3899.2,3899.1,15.47695081]
[1761047283767,0.001,3899.2,3899.1,15.69815081]
[1761047283988,0.001,3899.2,3899.1,15.22465081]
[1761047284197,0.001,3899.2,3899.1,15.69815081]
[1761047284564,0.001,3899.2,3899.1,15.00345081]
[1761047285998,0.001,3899.2,3899.1,8.16857441]
[1761047286911,0.0288,3899.2,3899.1,8.03957441]
[1761047287293,0.0288,3899.2,3898.9,2.56482597]
[1761047287294,0.0288,3899.2,3898.9,2.56478253]
[1761047287471,0.0288,3899.2,3899.1,2.56469441]
[1761047289660,0.001,3899.2,3899.1,2.56469441]
[1761047289970,0.001,3899.2,3899.1,3.09722135]
[1761047290196,0.001,3899.2,3899.1,3.07157441]
[1761047290499,0.001,3899.2,3899.1,3.57072135]
[1761047291277,0.001,3899.2,3899.1,3.07157441]
[1761047291478,0.001,3899.2,3899.1,5.27307441]
[1761047292173,0.001,3899.2,3899.1,4.79957441]
[1761047292590,0.001,3899.2,3899.1,8.03957441]
[1761047292877,0.0288,3899.2,3899.1,8.03957441]
[1761047293691,0.0288,3899.2,3899.1,2.56469441]
[1761047293928,0.0288,3899.2,3899.1,3.24]
[1761047294434,0.0288,3899.2,3899.1,5.80469441]
[1761047294941,0.0288,3899.2,3899.1,2.56469441]
[1761047295093,0.0288,3899.2,3899.1,3.24]
[1761047295495,0.0288,3899.2,3898.7,1.728]
[1761047295694,0.0288,3899.2,3898.8,6.31170927]
[1761047296310,0.0288,3899.2,3898.9,3.24]
[1761047296711,0.0288,3899.2,3899.0,2.56474919]
[1761047297041,0.0288,3899.2,3898.9,3.24]
[1761047297042,0.0288,3899.2,3899.1,3.24]
[1761047297241,0.0288,3899.2,3898.9,0.128]
[1761047297539,0.0288,3899.2,3899.1,3.24]
[1761047298932,0.001,3899.2,3899.1,3.24]
[1761047299237,0.001,3899.2,3899.1,6.31157441]
[1761047299541,0.001,3899.2,3899.1,8.16757441]
[1761047302559,0.001,3899.2,3899.1,8.61437441]
[1761047307544,0.001,3899.2,3899.1,8.16757441]
[1761047307719,0.001,3899.2,3899.1,8.61437441]
[1761047311153,0.001,3899.2,3899.1,8.16757441]
[1761047315033,0.001,3899.2,3899.1,8.63397441]
[1761047315810,0.001,3899.2,3899.1,8.16757441]
[1761047316023,0.001,3899.2,3899.1,8.63397441]
[1761047323238,0.001,3899.2,3899.1,8.16757441]
[1761047324871,0.001,3899.2,3899.1,8.63397441]
[1761047327477,0.001,3899.2,3899.1,5.39397441]
[1761047327774,0.001,3899.2,3899.1,8.63297441]
[1761047331859,0.001,3899.2,3899.1,8.73576663]
[1761047342010,0.001,3899.2,3899.1,8.26936663]
[1761047342243,0.001,3899.2,3899.1,8.74256663]
[1761047343087,0.001,3899.2,3899.1,8.26936663]
[1761047343402,0.001,3899.2,3899.1,8.26836663]
[1761047343904,0.001,3899.2,3899.1,5.03036663]
[1761047344094,0.1009,3899.2,3899.1,8.16557441]
[1761047345011,0.1009,3899.2,3899.1,4.92757441]
[1761047345303,0.1009,3899.2,3899.1,5.93069441]
[1761047345503,0.1009,3899.2,3899.1,4.42069441]
[1761047345685,0.1009,3899.2,3899.1,7.65869441]
[1761047346118,0.1009,3899.2,3899.1,6.43757441]
[1761047346908,0.1009,3899.2,3899.1,0.128]
[1761047347137,0.1009,3899.2,3899.1,5.93069441]
[1761047348426,0.1009,3899.2,3898.9,0.002]
[1761047348627,0.1009,3899.2,3899.0,3.238]
[1761047349642,0.1009,3899.2,3899.1,2.56469441]
[1761047349842,0.1009,3899.2,3899.0,3.238]
[1761047349843,0.1009,3899.2,3899.0,5.80274667]
[1761047350604,0.1009,3899.2,3899.0,3.238]
[1761047352346,0.1009,3899.2,3899.0,5.8027366]
[1761047352755,0.1009,3899.2,3899.0,3.238]
[1761047353113,0.1009,3899.2,3899.0,5.8027573]
[1761047353630,0.1009,3899.2,3899.0,3.238]
[1761047354405,0.1009,3899.2,3899.0,5.80274687]
[1761047356051,0.1009,3899.2,3899.0,3.238]
[1761047356257,0.1009,3899.2,3899.0,5.80275645]
[1761047357056,0.1009,3899.2,3899.0,3.238]
[1761047357356,0.1009,3899.2,3899.0,3.239]
[1761047357514,0.1009,3899.2,3898.9,3.241]
[1761047358058,0.34368243,3899.1,3898.9,3.241]
[1761047358412,0.0999,3899.0,3898.9,3.241]
[1761047359714,0.0999,3899.0,3898.9,0.002]
[1761047362108,0.001,3899.2,3898.9,0.002]
[1761047362109,0.1009,3899.2,3898.9,0.002]
[1761047362326,0.128,3899.0,3898.9,0.002]
[1761047362749,0.2279,3899.0,3898.9,0.002]
[1761047364049,0.0999,3899.0,3898.9,0.002]
[1761047364425,0.0999,3899.0,3898.9,3.241]
[1761047368055,0.0999,3899.0,3898.9,5.80582597]
[1761047368652,0.0999,3899.0,3898.9,3.241]
[1761047369351,0.0999,3899.0,3898.9,5.80582597]
[1761047369751,0.1009,3899.0,3898.9,5.80582597]
[1761047373027,0.001,3899.0,3898.9,5.80582597]
[1761047373859,0.129,3899.0,3898.9,5.80582597]
[1761047375139,0.129,3899.0,3898.9,3.241]
[1761047375439,0.129,3899.0,3898.9,5.80582597]
[1761047378472,0.001,3899.0,3898.9,6.26432597]
[1761047378672,0.001,3899.0,3898.9,5.80582597]
[1761047380459,0.001,3899.0,3898.9,5.93382597]
[1761047380773,0.001,3899.0,3898.9,6.89920597]
[1761047382231,0.001,3899.0,3898.9,6.44070597]
[1761047383590,0.001,3899.0,3898.9,5.93282597]
[1761047384380,0.001,3899.0,3898.9,5.80482597]
[1761047391420,0.001,3899.0,3898.9,13.14248477]
[1761047391707,0.001,3899.0,3898.9,13.98598477]
[1761047392368,0.001,3899.0,3898.9,14.11398477]
[1761047400905,0.2147,3901.0,3899.5,3.07131133]
[1761047401068,0.0999,3900.6,3899.5,13.13909013]
[1761047401272,0.128,3900.7,3899.5,13.73039013]
[1761047401585,0.2494,3900.4,3899.5,13.73039013]
[1761047401774,0.0999,3900.2,3899.5,13.73039013]
[1761047402899,0.1495,3900.4,3899.5,13.26709013]
[1761047403201,0.0999,3900.1,3899.5,13.26709013]
[1761047404207,0.1495,3900.4,3899.5,6.43631133]
[1761047404395,0.0999,3900.0,3899.5,5.92943133]
[1761047404574,0.1009,3900.0,3899.5,5.92943133]
[1761047404775,0.1009,3900.0,3899.5,6.43631133]
[1761047406006,0.001,3900.0,3899.5,13.26709013]
[1761047406206,0.001,3900.0,3899.5,13.73039013]
[1761047407281,0.001,3900.0,3899.5,13.60239013]
[1761047407476,0.001,3900.0,3899.5,13.73039013]
[1761047409007,0.001,3900.0,3899.5,6.43631133]
[1761047409198,0.1504,3899.9,3899.5,6.43631133]
[1761047410707,0.1504,3899.9,3899.5,8.16431133]
[1761047411812,0.1504,3899.9,3899.5,4.92731133]
[1761047411987,0.1,3899.8,3899.5,8.16431133]
[1761047412187,0.1,3899.6,3899.5,8.16431133]
[1761047412582,0.001,3899.6,3899.5,8.16431133]
[1761047417119,0.001,3899.6,3899.5,13.8533066]
[1761047417987,0.001,3899.6,3899.5,14.3137066]
[1761047418185,0.001,3899.6,3899.5,13.8533066]
[1761047418401,0.001,3899.6,3899.5,14.3137066]
[1761047418789,0.001,3899.6,3899.5,13.8533066]
[1761047419006,0.001,3899.6,3899.5,13.95610384]
[1761047419209,0.001,3899.6,3899.5,14.41650384]
[1761047421633,0.001,3899.6,3899.5,13.95610384]
[1761047421999,0.001,3899.6,3899.5,14.41650384]
[1761047425541,0.001,3899.6,3899.5,13.95610384]
[1761047430351,0.001,3899.6,3899.5,8.26710857]
[1761047430649,0.001,3899.6,3899.5,13.95610384]
[1761047431659,0.001,3899.6,3899.5,14.38640384]
[1761047433952,0.001,3899.6,3899.5,13.95610384]
[1761047434134,0.001,3899.6,3899.5,14.38640384]
[1761047435027,0.001,3899.6,3899.5,20.07539911]
[1761047435227,0.001,3899.8,3899.7,5.05617981]
[1761047435852,0.001,3899.8,3899.7,11.30347508]
[1761047436063,0.001,3899.8,3899.7,11.51817508]
[1761047437683,0.001,3899.8,3899.7,5.82917981]
[1761047438034,0.001,3899.8,3899.7,11.51817508]
[1761047438475,0.1005,3901.5,3900.2,0.76388]
[1761047438674,0.2135,3901.3,3900.9,5.68899527]
[1761047438874,0.2135,3901.3,3901.2,2.56331385]
[1761047439351,0.3151,3901.3,3901.2,2.56331385]
[1761047440374,0.2135,3901.3,3901.2,2.56331385]
[1761047440534,0.313,3901.8,3901.3,0.50688]
[1761047440737,0.313,3901.8,3901.7,2.56298536]
[1761047440959,0.313,3901.8,3901.7,5.79898536]
[1761047442258,0.313,3901.8,3901.6,3.236]
[1761047443571,0.313,3901.8,3901.6,5.79901927]
[1761047444290,0.313,3901.8,3901.7,2.56298536]
[1761047448786,0.128,3901.9,3901.8,2.56291967]
[1761047449089,0.128,3901.9,3899.7,2.56429449]
[1761047449090,0.099,3901.9,3899.7,2.56429449]
[1761047449292,0.099,3901.8,3900.8,5.68899527]
[1761047449574,0.099,3901.8,3901.2,2.56325559]
[1761047449751,0.099,3901.8,3901.3,5.80023023]
[1761047450173,0.099,3901.8,3901.3,3.237]
[1761047450366,0.099,3901.8,3901.3,5.80019283]
[1761047451076,0.099,3901.8,3901.3,3.237]
[1761047451246,0.38371984,3901.8,3901.3,3.237]
[1761047451441,0.2844,3902.1,3901.5,2.56306591]
[1761047451679,0.099,3902.0,3901.6,3.237]
[1761047452384,0.099,3902.0,3901.6,5.80004788]
[1761047453572,0.099,3902.0,3901.7,2.56297967]
[1761047453948,0.099,3902.0,3901.6,3.237]
[1761047453949,0.099,3902.0,3901.8,2.56290915]
[1761047454592,0.099,3902.0,3901.6,3.237]
[1761047455089,0.099,3902.0,3901.7,2.56294632]
[1761047456759,0.099,3902.0,3901.8,2.56291111]
[1761047456961,0.099,3902.0,3901.9,3.238]
[1761047457157,0.1854,3902.1,3901.9,3.238]
[1761047457481,0.099,3902.0,3901.9,3.238]
[1761047459070,0.099,3902.0,3901.9,5.80085399]
[1761047459780,0.099,3902.0,3901.9,3.237]
[1761047459980,0.22799599,3902.0,3901.9,3.237]
[1761047461996,0.128,3901.9,3901.4,2.5631812]
[1761047462192,0.227,3901.9,3901.5,3.236]
[1761047462416,0.099,3901.8,3901.6,3.236]
[1761047464601,0.099,3901.8,3901.7,3.236]
[1761047464906,0.128,3901.6,3901.5,3.236]
[1761047465292,0.227,3901.6,3901.5,3.236]
[1761047465967,0.227,3901.6,3901.1,2.56333827]
[1761047466225,0.099,3901.5,3900.9,1.728]
[1761047466400,0.099,3901.5,3901.0,5.79938562]